fUSD/lending_fUSD_20250227
["ID","MTS","AMOUNT","RATE_DAILY","PERIOD"]
[354725185,1740646242685,-1088.0,0.0005619,120]
[354725187,1740646242694,-150.0,0.0005619,120]
[354725189,1740646242703,-524.13465511,0.00056217,120]
[354725191,1740646242714,-1088.0,0.00056217,120]
[354725193,1740646242724,-250.95,0.00056217,120]
[354725195,1740646242733,-1088.0,0.00056245,120]
[354725197,1740646242743,-1088.0,0.00056272,120]
[354725199,1740646242752,-1088.0,0.00056299,120]
[354725201,1740646242761,-1088.0,0.00056327,120]
[354725203,1740646242771,-1088.0,0.00056354,120]
[354725205,1740646242783,-1088.0,0.00056382,120]
[354725207,1740646242792,-1088.0,0.00056409,120]
[354725209,1740646242801,-1088.0,0.00056436,120]
[354725211,1740646242811,-1088.0,0.00056464,120]
[354725213,1740646242821,-1088.0,0.00056491,120]
[354725215,1740646242831,-1088.0,0.00056519,120]
[354725217,1740646242841,-1088.0,0.00056546,120]
[354725219,1740646242851,-1088.0,0.00056573,120]
[354725221,1740646242861,-1088.0,0.00056601,120]
[354725223,1740646242870,-1088.0,0.00056628,120]
[354725225,1740646242879,-1103.25979385,0.00056656,120]
[354725227,1740646242889,-151.0,0.00056712,120]
[354725229,1740646242899,-152.03,0.0005699,120]
[354725231,1740646242909,-152.03,0.0005699,120]
[354725234,1740646242919,-152.03,0.0005699,120]
[354725236,1740646242929,-152.03,0.0005699,120]
[354725238,1740646242939,-152.03,0.0005699,120]
[354725240,1740646242948,-152.03,0.0005699,120]
[354725242,1740646242958,-152.03,0.0005699,120]
[354725244,1740646242967,-152.03,0.0005699,120]
[354725246,1740646242976,-152.03,0.0005699,120]
[354725248,1740646242986,-152.03,0.0005699,120]
[354725250,1740646242995,-152.03,0.0005699,120]
[354725252,1740646243005,-152.03,0.0005699,120]
[354725254,1740646243014,-152.03,0.0005699,120]
[354725256,1740646243023,-152.03,0.0005699,120]
[354725258,1740646243034,-152.03,0.0005699,120]
[354725261,1740646243044,-500.0,0.00057,120]
[354725264,1740646243053,-500.0,0.00057,120]
[354725267,1740646243063,-1000000.0,0.00057,120]
[354725269,1740646243072,-151.0,0.00057,120]
[354725271,1740646243082,-151.0,0.00057,3]
[354725273,1740646243091,-205.620536,0.00057,120]
[354725275,1740646243102,-205.620536,0.00057,120]
[354725277,1740646243111,-153.799218,0.00057,120]
[354725279,1740646243120,-151.0,0.00057,120]
[354725281,1740646243129,-151.0,0.00057,120]
[354725283,1740646243140,-151.0,0.00057,120]
[354725285,1740646243149,-151.0,0.00057,120]
[354725287,1740646243159,-151.0,0.00057,120]
[354725289,1740646243168,-151.0,0.00057,120]
[354725291,1740646243177,-151.0,0.00057,120]
[354725293,1740646243187,-151.0,0.00057,120]
[354725296,1740646243196,-151.0,0.00057,120]
[354725300,1740646243205,-151.0,0.00057,120]
[354725302,1740646243215,-337.459539,0.00057,120]
[354725305,1740646243224,-337.459539,0.00057,120]
[354725307,1740646243234,-151.0,0.00057,120]
[354725309,1740646243243,-374.62,0.00057006,2]
[354725311,1740646243253,-229.95868919,0.00057534,16]
[354725313,1740646243262,-500.0,0.00057534,120]
[354725315,1740646243271,-500.0,0.00057534,120]
[354725317,1740646243281,-502.95134095,0.00057534,120]
[354725320,1740646243290,-500.0,0.00057534,120]
[354725323,1740646243299,-500.0,0.00057534,120]
[354725325,1740646243308,-500.0,0.00057534,120]
[354725327,1740646243317,-508.43889333,0.00057534,120]
[354725330,1740646243326,-500.0,0.00057534,120]
[354725333,1740646243335,-501.40555017,0.00057534,120]
[354725337,1740646243344,-254.85428936,0.00057534,120]
[354725340,1740646243353,-541.35,0.00057534,120]
[354725344,1740646243362,-500.0,0.00057534,120]
[354725347,1740646243371,-509.97,0.00057534,120]
[354725351,1740646243380,-505.68498532,0.00057534,120]
[354725354,1740646243389,-833.9,0.00057534,120]
[354725357,1740646243398,-545.74015705,0.00057534,120]
[354725361,1740646243407,-500.0,0.00057534,120]
[354725363,1740646243416,-500.0,0.00057534,120]
[354725367,1740646243425,-3134.84,0.00057534,120]
[354725369,1740646243434,-158.23212485,0.00057534,120]
[354725370,1740646243445,-502.98,0.00057534,120]
[354725372,1740646243454,-508.31778592,0.00057534,120]
[354725374,1740646243463,-476.91527066,0.00057534,120]
[354725376,1740646243472,-4166.66,0.00057534,120]
[354725378,1740646243481,-341.76787515,0.00057534,120]
[354725380,1740646243490,-500.0,0.00057534,120]
[354725382,1740646243499,-216.15,0.00057534,120]
[354725384,1740646243509,-500.0,0.00057534,120]
[354725386,1740646243518,-507.51682468,0.00057534,120]
[354725388,1740646243527,-500.0,0.00057534,120]
[354725390,1740646243537,-500.0,0.00057534,120]
[354725392,1740646243546,-500.0,0.00057534,120]
[354725394,1740646243555,-500.0,0.00057534,120]
[354725396,1740646243567,-504.01819983,0.00057534,120]
[354725398,1740646243576,-500.0,0.00057534,120]
[354725403,1740646243612,-506.93440938,0.00057534,120]
[354725405,1740646243622,-500.39729289,0.00057534,120]
[354725407,1740646243632,-500.0,0.00057534,120]
[354725409,1740646243642,-500.0,0.00057534,120]
[354725411,1740646243652,-500.0,0.00057534,120]
[354725413,1740646243662,-500.0,0.00057534,120]
[354725415,1740646243671,-500.0,0.00057534,120]
[354725417,1740646243680,-163.21867146,0.00057534,120]
[354725419,1740646243689,-500.67702593,0.00057534,120]
[354725421,1740646243698,-500.0,0.00057534,120]
[354725423,1740646243707,-500.0,0.00057534,120]
[354725425,1740646243717,-500.0,0.00057534,120]
[354725427,1740646243726,-506.65405331,0.00057534,120]
[354725429,1740646243735,-728.81,0.00057534,120]
[354725431,1740646243744,-514.39867934,0.00057534,120]
[354725433,1740646243755,-500.0,0.00057534,120]
[354725435,1740646243764,-506.5055884,0.00057534,120]
[354725436,1740646243775,-648.76,0.00057534,120]
[354725437,1740646243784,-505.91879508,0.00057534,120]
[354725438,1740646243793,-500.0,0.00057534,120]
[354725439,1740646243803,-503.26986352,0.00057534,120]
[354725440,1740646243814,-500.0,0.00057534,120]
[354725441,1740646243824,-500.0,0.00057534,120]
[354725442,1740646243833,-506.47527427,0.00057534,120]
[354725443,1740646243842,-502.75185623,0.00057534,120]
[354725444,1740646243853,-507.19220414,0.00057534,120]
[354725445,1740646243862,-505.90384413,0.00057534,120]
[354725446,1740646243871,-502.85891387,0.00057534,120]
[354725447,1740646243880,-500.36162892,0.00057534,120]
[354725448,1740646243890,-505.87811595,0.00057534,120]
[354725449,1740646243899,-500.0,0.00057534,120]
[354725450,1740646243908,-500.0,0.00057534,120]
[354725452,1740646243917,-500.0,0.00057534,120]
[354725453,1740646243927,-575.59684994,0.00057534,120]
[354725455,1740646243937,-500.0,0.00057534,120]
[354725457,1740646243946,-500.0,0.00057534,120]
[354725459,1740646243956,-447.70064469,0.00057534,120]
[354725461,1740646243965,-500.0,0.00057534,120]
[354725463,1740646243974,-500.0,0.00057534,120]
[354725465,1740646243983,-292.31990978,0.00057534,120]
[354725467,1740646243993,-500.0,0.00057534,120]
[354725469,1740646244001,-500.0,0.00057534,120]
[354725471,1740646244010,-500.0,0.00057534,120]
[354725473,1740646244019,-632.25,0.00057534,120]
[354725475,1740646244029,-500.0,0.00057534,120]
[354725477,1740646244038,-500.0,0.00057534,120]
[354725479,1740646244048,-500.0,0.00057534,120]
[354725481,1740646244060,-500.0,0.00057534,120]
[354725483,1740646244069,-500.0,0.00057534,120]
[354725485,1740646244078,-504.98477724,0.00057534,120]
[354725487,1740646244088,-500.0,0.00057534,120]
[354725489,1740646244097,-520.0,0.00057534,120]
[354725491,1740646244106,-500.0,0.00057534,120]
[354725492,1740646244115,-500.0,0.00057534,120]
[354725494,1740646244124,-382.80000906,0.00057534,120]
[354725496,1740646244134,-500.0,0.00057534,120]
[354725498,1740646244143,-500.0,0.00057534,120]
[354725500,1740646244153,-495.0,0.00057534,120]
[354725502,1740646244162,-1509.91,0.00057534,120]
[354725504,1740646244171,-500.0,0.00057534,120]
[354725506,1740646244180,-500.11936163,0.00057534,120]
[354725508,1740646244190,-500.0,0.00057534,120]
[354725510,1740646244199,-500.0,0.00057534,120]
[354725512,1740646244208,-500.0,0.00057534,120]
[354725514,1740646244217,-500.0,0.00057534,120]
[354725516,1740646244226,-3141.62,0.00057534,120]
[354725518,1740646244235,-500.0,0.00057534,120]
[354725520,1740646244245,-500.0,0.00057534,120]
[354725522,1740646244256,-500.0,0.00057534,120]
[354725524,1740646244265,-500.0,0.00057534,120]
[354725526,1740646244274,-500.0,0.00057534,120]
[354725528,1740646244283,-500.0,0.00057534,120]
[354725530,1740646244293,-3998.01,0.00057534,120]
[354725532,1740646244302,-385.17400128,0.00057534,120]
[354725534,1740646244314,-500.0,0.00057534,120]
[354725536,1740646244323,-505.06580047,0.00057534,120]
[354725538,1740646244332,-500.0,0.00057534,120]
[354725540,1740646244341,-500.0,0.00057534,120]
[354725542,1740646244350,-497.65564626,0.00057534,120]
[354725544,1740646244359,-500.0,0.00057534,120]
[354725546,1740646244369,-505.44043303,0.00057534,120]
[354725548,1740646244378,-647.01,0.00057534,120]
[354725550,1740646244387,-504.54436059,0.00057534,120]
[354725552,1740646244397,-500.0,0.00057534,120]
[354725554,1740646244408,-500.0,0.00057534,120]
[354725556,1740646244418,-500.0,0.00057534,120]
[354725558,1740646244427,-503.24292708,0.00057534,120]
[354725560,1740646244436,-500.0,0.00057534,120]
[354725562,1740646244446,-505.62822268,0.00057534,120]
[354725564,1740646244455,-500.80129874,0.00057534,120]
[354725566,1740646244465,-500.0,0.00057534,120]
[354725568,1740646244474,-500.0,0.00057534,120]
[354725570,1740646244483,-500.0,0.00057534,120]
[354725572,1740646244496,-506.69654371,0.00057534,120]
[354725574,1740646244505,-523.88,0.00057534,120]
[354725576,1740646244513,-500.0,0.00057534,120]
[354725578,1740646244523,-500.0,0.00057534,120]
[354725581,1740646244532,-500.0,0.00057534,120]
[354725585,1740646244543,-500.0,0.00057534,120]
[354725587,1740646244554,-500.0,0.00057534,120]
[354725589,1740646244565,-513.85999919,0.00057534,120]
[354725591,1740646244574,-515.86233951,0.00057534,120]
[354725593,1740646244584,-500.0,0.00057534,120]
[354725595,1740646244594,-506.40481897,0.00057534,120]
[354725597,1740646244603,-439.03141748,0.00057534,120]
[354725599,1740646244614,-500.0,0.00057534,120]
[354725601,1740646244623,-500.0,0.00057534,120]
[354725603,1740646244632,-8819.58,0.00057534,120]
[354725605,1740646244642,-500.0,0.00057534,120]
[354725607,1740646244651,-500.0,0.00057534,120]
[354725609,1740646244661,-500.0,0.00057534,120]
[354725611,1740646244670,-500.0,0.00057534,120]
[354725613,1740646244679,-500.0,0.00057534,120]
[354725615,1740646244689,-500.0,0.00057534,120]
[354725617,1740646244698,-500.0,0.00057534,120]
[354725619,1740646244708,-557.09,0.00057534,120]
[354725621,1740646244717,-1253.2,0.00057534,120]
[354725623,1740646244726,-500.0,0.00057534,120]
[354725625,1740646244735,-500.0,0.00057534,120]
[354725627,1740646244745,-500.0,0.00057534,120]
[354725629,1740646244755,-993.48,0.00057534,120]
[354725631,1740646244764,-500.0,0.00057534,120]
[354725633,1740646244776,-500.0,0.00057534,120]
[354725635,1740646244785,-500.0,0.00057534,120]
[354725637,1740646244795,-500.0,0.00057534,120]
[354725639,1740646244805,-553.51,0.00057534,40]
[354725641,1740646244815,-500.0,0.00057534,120]
[354725643,1740646244826,-500.0,0.00057534,120]
[354725645,1740646244835,-258.41823418,0.00057534,120]
[354725647,1740646244845,-500.0,0.00057534,120]
[354725649,1740646244855,-500.0,0.00057534,120]
[354725651,1740646244866,-500.0,0.00057534,120]
[354725653,1740646244875,-502.20255079,0.00057534,120]
[354725655,1740646244884,-500.0,0.00057534,120]
[354725657,1740646244893,-214.00969335,0.00057534,120]
[354725659,1740646244903,-524.86,0.00057534,120]
[354725661,1740646244912,-687.5,0.00057534,120]
[354725663,1740646244921,-500.0,0.00057534,120]
[354725665,1740646244931,-500.0,0.00057534,120]
[354725667,1740646244941,-508.12346485,0.00057534,120]
[354725669,1740646244950,-503.37436682,0.00057534,120]
[354725671,1740646244959,-500.0,0.00057534,120]
[354725673,1740646244969,-500.0,0.00057534,120]
[354725675,1740646244978,-500.0,0.00057534,120]
[354725677,1740646244988,-500.0,0.00057534,120]
[354725679,1740646244997,-3689.57,0.00057534,120]
[354725682,1740646245007,-500.0,0.00057534,120]
[354725684,1740646245017,-500.0,0.00057534,2]
[354725686,1740646245026,-617.90000006,0.00057534,120]
[354725688,1740646245036,-193.5,0.00057808,120]
[354725690,1740646245046,-500.0,0.00057808,120]
[354725692,1740646245055,-501.2411636,0.00057808,120]
[354725694,1740646245065,-500.0,0.00057808,120]
[354725696,1740646245075,-500.0,0.00057808,120]
[354725698,1740646245085,-833.9,0.00057808,120]
[354725699,1740646245094,-500.0,0.00057808,120]
[354725702,1740646245104,-500.0,0.00057808,120]
[354725704,1740646245113,-3134.84,0.00057808,120]
[354725706,1740646245123,-502.98,0.00057808,120]
[354725707,1740646245132,-4166.66,0.00057808,120]
[354725709,1740646245141,-500.0,0.00057808,120]
[354725711,1740646245151,-500.0,0.00057808,120]
[354725713,1740646245160,-563.24,0.00057808,120]
[354725715,1740646245170,-500.0,0.00057808,120]
[354725717,1740646245179,-500.0,0.00057808,120]
[354725720,1740646245190,-500.0,0.00057808,120]
[354725721,1740646245199,-533.9193101,0.00057808,120]
[354725724,1740646245210,-500.0,0.00057808,120]
[354725726,1740646245219,-500.0,0.00057808,120]
[354725728,1740646245228,-728.81,0.00057808,120]
[354725730,1740646245238,-500.0,0.00057808,120]
[354725732,1740646245247,-500.0,0.00057808,120]
[354725734,1740646245257,-500.0,0.00057808,120]
[354725736,1740646245266,-500.0,0.00057808,120]
[354725738,1740646245276,-500.0,0.00057808,120]
[354725740,1740646245286,-500.0,0.00057808,120]
[354725742,1740646245295,-500.0,0.00057808,120]
[354725744,1740646245304,-500.0,0.00057808,120]
[354725745,1740646245315,-500.0,0.00057808,120]
[354725748,1740646245324,-500.0,0.00057808,120]
[354725750,1740646245334,-500.0,0.00057808,120]
[354725751,1740646245343,-272.91,0.00057808,120]
[354725753,1740646245353,-500.0,0.00057808,120]
[354725756,1740646245364,-222.83,0.00057808,120]
[354725758,1740646245373,-251.66,0.00057808,120]
[354725760,1740646245383,-204.05,0.00057808,120]
[354725762,1740646245392,-161.53,0.00057808,120]
[354725764,1740646245401,-500.0,0.00057808,120]
[354725766,1740646245410,-509.33,0.00057808,120]
[354725768,1740646245419,-1509.91,0.00057808,120]
[354725769,1740646245428,-500.0,0.00057808,120]
[354725771,1740646245438,-500.0,0.00057808,120]
[354725773,1740646245447,-500.0,0.00057808,120]
[354725775,1740646245456,-620.02,0.00057808,120]
[354725778,1740646245466,-500.0,0.00057808,120]
[354725779,1740646245476,-3141.62,0.00057808,120]
[354725781,1740646245486,-500.0,0.00057808,120]
[354725783,1740646245495,-336.66,0.00057808,120]
[354725785,1740646245504,-500.0,0.00057808,120]
[354725788,1740646245514,-3998.01,0.00057808,120]
[354725790,1740646245524,-500.0,0.00057808,120]
[354725792,1740646245533,-173.10298118,0.00057808,120]
[354725794,1740646245543,-500.0,0.00057808,120]
[354725796,1740646245552,-500.0,0.00057808,120]
[354725798,1740646245562,-500.0,0.00057808,120]
[354725800,1740646245572,-500.0,0.00057808,120]
[354725802,1740646245582,-500.0,0.00057808,120]
[354725804,1740646245592,-500.0,0.00057808,120]
[354725806,1740646245601,-500.0,0.00057808,120]
[354725808,1740646245614,-500.0,0.00057808,120]
[354725810,1740646245623,-500.0,0.00057808,120]
[354725812,1740646245632,-500.0,0.00057808,120]
[354725814,1740646245642,-500.0,0.00057808,120]
[354725816,1740646245651,-500.0,0.00057808,120]
[354725818,1740646245660,-500.0,0.00057808,120]
[354725820,1740646245671,-8819.58,0.00057808,120]
[354725822,1740646245681,-500.0,0.00057808,120]
[354725824,1740646245690,-219.6,0.00057808,120]
[354725826,1740646245700,-500.0,0.00057808,120]
[354725828,1740646245709,-285.15,0.00057808,120]
[354725830,1740646245719,-500.0,0.00057808,120]
[354725832,1740646245728,-500.0,0.00057808,120]
[354725834,1740646245737,-1253.2,0.00057808,120]
[354725836,1740646245746,-993.48,0.00057808,120]
[354725838,1740646245756,-420.43840473,0.00057808,120]
[354725840,1740646245766,-261.43,0.00057808,120]
[354725842,1740646245779,-500.0,0.00057808,120]
[354725845,1740646245789,-280.97,0.00057808,120]
[354725847,1740646245799,-687.5,0.00057808,120]
[354725849,1740646245809,-500.0,0.00057808,120]
[354725851,1740646245819,-500.0,0.00057808,120]
[354725853,1740646245828,-321.00459934,0.00057808,120]
[354725855,1740646245837,-500.0,0.00057808,120]
[354725857,1740646245847,-500.0,0.00057808,120]
[354725859,1740646245856,-3689.57,0.00057808,120]
[354725861,1740646245866,-500.0,0.00057808,120]
[354725863,1740646245876,-500.0,0.00057808,2]
[354725864,1740646245885,-154.13805979,0.000579,15]
[354725866,1740646245895,-3377.98725457,0.000579,15]
[354725868,1740646245905,-170.8973482,0.0005799,7]
[354725870,1740646245914,-2500.0,0.00057999,120]
[354725872,1740646245924,-500.0,0.00058,120]
[354725874,1740646245933,-1000000.0,0.00058,120]
[354725876,1740646245943,-1000000.0,0.00058,120]
[354725879,1740646245952,-402.98067377,0.00058,2]
[354725881,1740646245962,-151.0,0.00058,120]
[354725883,1740646245971,-151.0,0.00058,120]
[354725885,1740646245981,-235.860713,0.00058,3]
[354725887,1740646245990,-205.620536,0.00058,120]
[354725889,1740646246000,-205.620536,0.00058,120]
[354725891,1740646246009,-205.620536,0.00058,120]
[354725893,1740646246018,-205.620536,0.00058,120]
[354725895,1740646246028,-151.0,0.00058,120]
[354725897,1740646246037,-151.0,0.00058,120]
[354725899,1740646246046,-151.0,0.00058,120]
[354725901,1740646246056,-151.0,0.00058,120]
[354725903,1740646246067,-284.765448,0.00058,120]
[354725905,1740646246078,-151.0,0.00058,120]
[354725907,1740646246088,-151.0,0.00058,120]
[354725909,1740646246098,-151.0,0.00058,120]
[354725911,1740646246107,-273.2811,0.00058,120]
[354725914,1740646246116,-151.0,0.00058,120]
[354725916,1740646246126,-151.0,0.00058,120]
[354725918,1740646246135,-151.0,0.00058,120]
[354725920,1740646246145,-151.0,0.00058,120]
[354725922,1740646246154,-151.0,0.00058,120]
[354725924,1740646246163,-151.0,0.00058,120]
[354725926,1740646246173,-256.378788,0.00058,120]
[354725928,1740646246182,-337.459539,0.00058,120]
[354725930,1740646246191,-337.459539,0.00058,120]
[354725932,1740646246201,-337.459539,0.00058,120]
[354725934,1740646246211,-337.459539,0.00058,120]
[354725936,1740646246220,-151.0,0.00058,120]
[354725938,1740646246229,-151.0,0.00058,120]
[354725939,1740646246238,-500.0,0.00058082,120]
[354725940,1740646246247,-500.0,0.00058082,120]
[354725941,1740646246257,-500.0,0.00058082,120]
[354725942,1740646246266,-833.9,0.00058082,120]
[354725944,1740646246276,-500.0,0.00058082,120]
[354725946,1740646246285,-500.0,0.00058082,120]
[354725948,1740646246295,-3134.84,0.00058082,120]
[354725950,1740646246304,-502.98,0.00058082,120]
[354725952,1740646246315,-4166.66,0.00058082,120]
[354725954,1740646246325,-239.32,0.00058082,120]
[354725957,1740646246335,-500.0,0.00058082,120]
[354725959,1740646246344,-501.14,0.00058082,120]
[354725961,1740646246354,-244.51783578,0.00058082,120]
[354725963,1740646246363,-500.0,0.00058082,120]
[354725965,1740646246373,-728.81,0.00058082,120]
[354725969,1740646246382,-500.0,0.00058082,120]
[354725972,1740646246392,-197.57,0.00058082,120]
[354725974,1740646246401,-500.0,0.00058082,120]
[354725976,1740646246410,-500.0,0.00058082,120]
[354725978,1740646246419,-500.0,0.00058082,120]
[354725980,1740646246428,-500.0,0.00058082,120]
[354725982,1740646246438,-500.0,0.00058082,120]
[354725984,1740646246447,-500.0,0.00058082,120]
[354725986,1740646246456,-500.0,0.00058082,120]
[354725988,1740646246466,-261.95599022,0.00058082,120]
[354725990,1740646246475,-500.0,0.00058082,120]
[354725992,1740646246485,-500.0,0.00058082,120]
[354725994,1740646246494,-616.41,0.00058082,120]
[354725996,1740646246504,-1509.91,0.00058082,120]
[354725998,1740646246514,-500.0,0.00058082,120]
[354726000,1740646246523,-500.0,0.00058082,120]
[354726012,1740646246631,-500.0,0.00058082,120]
[354726014,1740646246641,-500.0,0.00058082,120]
[354726016,1740646246651,-3141.62,0.00058082,120]
[354726018,1740646246660,-394.85,0.00058082,120]
[354726020,1740646246670,-500.0,0.00058082,120]
[354726022,1740646246680,-3998.01,0.00058082,120]
[354726024,1740646246689,-500.0,0.00058082,120]
[354726026,1740646246699,-500.0,0.00058082,120]
[354726028,1740646246709,-500.0,0.00058082,120]
[354726031,1740646246719,-500.0,0.00058082,120]
[354726033,1740646246728,-241.11,0.00058082,120]
[354726035,1740646246738,-500.0,0.00058082,120]
[354726037,1740646246747,-455.82106765,0.00058082,120]
[354726039,1740646246756,-500.0,0.00058082,120]
[354726041,1740646246765,-347.84,0.00058082,120]
[354726043,1740646246776,-500.0,0.00058082,120]
[354726045,1740646246786,-500.0,0.00058082,120]
[354726047,1740646246795,-500.0,0.00058082,120]
[354726049,1740646246804,-594.78,0.00058082,120]
[354726051,1740646246815,-500.0,0.00058082,120]
[354726053,1740646246824,-8819.58,0.00058082,120]
[354726055,1740646246833,-500.0,0.00058082,120]
[354726057,1740646246842,-369.61,0.00058082,120]
[354726058,1740646246852,-500.0,0.00058082,120]
[354726061,1740646246861,-500.0,0.00058082,120]
[354726062,1740646246871,-1253.2,0.00058082,120]
[354726065,1740646246881,-993.48,0.00058082,120]
[354726067,1740646246891,-500.0,0.00058082,120]
[354726069,1740646246900,-687.5,0.00058082,120]
[354726071,1740646246910,-280.41,0.00058082,120]
[354726073,1740646246919,-500.0,0.00058082,120]
[354726075,1740646246928,-500.0,0.00058082,120]
[354726077,1740646246938,-500.0,0.00058082,120]
[354726079,1740646246948,-3689.57,0.00058082,120]
[354726081,1740646246957,-500.0,0.00058082,120]
[354726083,1740646246967,-518.34,0.00058082,2]
[354726085,1740646246976,-3343.33,0.00058334,120]
[354726087,1740646246986,-555.57944092,0.00058356,120]
[354726089,1740646246995,-500.0,0.00058356,120]
[354726091,1740646247005,-260.4,0.00058356,120]
[354726093,1740646247015,-833.9,0.00058356,120]
[354726095,1740646247024,-500.0,0.00058356,120]
[354726097,1740646247033,-500.0,0.00058356,120]
[354726099,1740646247042,-3134.84,0.00058356,120]
[354726101,1740646247051,-502.98,0.00058356,120]
[354726103,1740646247060,-4166.66,0.00058356,120]
[354726104,1740646247070,-500.0,0.00058356,120]
[354726107,1740646247079,-171.11,0.00058356,120]
[354726108,1740646247088,-728.81,0.00058356,120]
[354726110,1740646247097,-500.0,0.00058356,120]
[354726112,1740646247107,-500.0,0.00058356,120]
[354726115,1740646247117,-500.0,0.00058356,120]
[354726117,1740646247126,-500.0,0.00058356,120]
[354726120,1740646247135,-500.0,0.00058356,120]
[354726123,1740646247145,-290.71,0.00058356,120]
[354726126,1740646247154,-500.0,0.00058356,120]
[354726128,1740646247163,-500.0,0.00058356,120]
[354726130,1740646247172,-166.96,0.00058356,120]
[354726133,1740646247182,-500.0,0.00058356,120]
[354726134,1740646247193,-1509.91,0.00058356,120]
[354726136,1740646247202,-500.0,0.00058356,120]
[354726138,1740646247211,-500.0,0.00058356,120]
[354726140,1740646247220,-500.0,0.00058356,120]
[354726142,1740646247229,-393.62,0.00058356,120]
[354726144,1740646247239,-3141.62,0.00058356,120]
[354726146,1740646247248,-500.0,0.00058356,120]
[354726148,1740646247257,-3998.01,0.00058356,120]
[354726151,1740646247267,-500.0,0.00058356,120]
[354726153,1740646247277,-500.0,0.00058356,120]
[354726155,1740646247287,-501.0,0.00058356,120]
[354726157,1740646247296,-500.0,0.00058356,120]
[354726159,1740646247306,-500.0,0.00058356,120]
[354726161,1740646247316,-500.0,0.00058356,120]
[354726163,1740646247326,-500.0,0.00058356,120]
[354726165,1740646247337,-500.0,0.00058356,120]
[354726167,1740646247346,-500.0,0.00058356,120]
[354726169,1740646247355,-8819.58,0.00058356,120]
[354726171,1740646247364,-609.6,0.00058356,120]
[354726173,1740646247373,-500.0,0.00058356,120]
[354726175,1740646247382,-500.0,0.00058356,120]
[354726177,1740646247392,-1253.2,0.00058356,120]
[354726179,1740646247400,-993.48,0.00058356,120]
[354726181,1740646247410,-212.410875,0.00058356,120]
[354726183,1740646247419,-687.5,0.00058356,120]
[354726185,1740646247427,-500.0,0.00058356,120]
[354726187,1740646247436,-500.0,0.00058356,120]
[354726189,1740646247445,-500.0,0.00058356,120]
[354726191,1740646247455,-3689.57,0.00058356,120]
[354726192,1740646247463,-373.98,0.00058356,120]
[354726194,1740646247472,-151.0,0.00058384,120]
[354726196,1740646247481,-349.0,0.00058501,60]
[354726198,1740646247491,-500.0,0.0005863,120]
[354726200,1740646247500,-833.9,0.0005863,120]
[354726203,1740646247510,-500.0,0.0005863,120]
[354726205,1740646247520,-500.0,0.0005863,120]
[354726207,1740646247529,-3134.84,0.0005863,120]
[354726209,1740646247538,-502.98,0.0005863,120]
[354726211,1740646247548,-4166.66,0.0005863,120]
[354726212,1740646247558,-510.86074649,0.0005863,120]
[354726214,1740646247568,-728.81,0.0005863,120]